[Event "Titled Tuesday Blitz May 25 2021"]
[White "Abdrlauf, Elham"]
[Black "Taboas Rodriguez, Daniel"]
[WhiteFideId "1533533"]
[BlackFideId "2208466"]
[WhiteElo "2326"]
[BlackElo "2429"]
[Result "1-0"]
[Round "02"]
[TimeControl "180+1"]
[Date "2021.05.25"]
[WhiteClock "0:00:01"]
[BlackClock "0:00:06"]

1. e4 {[%clk 0:03:00]}  e6 {[%clk 0:02:58]} 2. d4 {[%clk 0:03:00]}  d5 {[%clk 0:02:59]} 3. Nc3 {[%clk 0:03:01]}  Nc6 {[%clk 0:02:59]} 4. Nf3 {[%clk 0:02:55]}  Nf6 {[%clk 0:02:59]} 5. e5 {[%clk 0:02:56]}  Ne4 {[%clk 0:02:59]} 6. Bd3 {[%clk 0:02:45]}  Bb4 {[%clk 0:02:59]} 7. O-O {[%clk 0:02:36]}  Nxc3 {[%clk 0:03:00]} 8. bxc3 {[%clk 0:02:37]}  Bxc3 {[%clk 0:03:01]} 9. Rb1 {[%clk 0:02:37]}  h6 {[%clk 0:03:01]} 10. Be3 {[%clk 0:02:36]}  Bb4 {[%clk 0:02:53]} 11. c4 {[%clk 0:02:31]}  Be7 {[%clk 0:02:50]} 12. h3 {[%clk 0:02:23]}  O-O {[%clk 0:02:44]} 13. cxd5 {[%clk 0:02:05]}  Qxd5 {[%clk 0:02:45]} 14. Qd2 {[%clk 0:02:00]}  a5 {[%clk 0:02:38]} 15. Rb5 {[%clk 0:01:50]}  Bb4 {[%clk 0:02:25]} 16. Qc1 {[%clk 0:01:36]}  Qxa2 {[%clk 0:02:18]} 17. Bxh6 {[%clk 0:01:36]}  f6 {[%clk 0:01:45]} 18. Bc4 {[%clk 0:00:19]}  Qa3 {[%clk 0:01:38]} 19. Qf4 {[%clk 0:00:15]}  Rf7 {[%clk 0:01:18]} 20. d5 {[%clk 0:00:08]}  fxe5 {[%clk 0:01:04]} 21. Qg3 {[%clk 0:00:05]}  Nd4 {[%clk 0:00:43]} 22. dxe6 {[%clk 0:00:06]}  Bxe6 {[%clk 0:00:40]} 23. Bxe6 {[%clk 0:00:05]}  Nxe6 {[%clk 0:00:41]} 24. Qxe5 {[%clk 0:00:02]}  Re8 {[%clk 0:00:20]} 25. Be3 {[%clk 0:00:02]}  b6 {[%clk 0:00:13]} 26. Ng5 {[%clk 0:00:02]}  Rfe7 {[%clk 0:00:12]} 27. Qf5 {[%clk 0:00:01]}  Nxg5 {[%clk 0:00:12]} 28. Qxg5 {[%clk 0:00:02]}  Qd3 {[%clk 0:00:12]} 29. Rd5 {[%clk 0:00:02]}  Qe4 {[%clk 0:00:12]} 30. Rf5 {[%clk 0:00:01]}  Qe6 {[%clk 0:00:12]} 31. Qg4 {[%clk 0:00:02]}  Rf7 {[%clk 0:00:12]} 32. Rxf7 {[%clk 0:00:02]}  Qxg4 {[%clk 0:00:12]} 33. hxg4 {[%clk 0:00:03]}  Kxf7 {[%clk 0:00:12]} 34. Rc1 {[%clk 0:00:04]}  c5 {[%clk 0:00:12]} 35. Kf1 {[%clk 0:00:03]}  a4 {[%clk 0:00:12]} 36. Ra1 {[%clk 0:00:02]}  a3 {[%clk 0:00:13]} 37. Ke2 {[%clk 0:00:03]}  b5 {[%clk 0:00:12]} 38. Kd3 {[%clk 0:00:04]}  Ra8 {[%clk 0:00:12]} 39. Kc2 {[%clk 0:00:03]}  c4 {[%clk 0:00:11]} 40. Bd4 {[%clk 0:00:03]}  g6 {[%clk 0:00:11]} 41. Rb1 {[%clk 0:00:03]}  Ra4 {[%clk 0:00:10]} 42. Rh1 {[%clk 0:00:02]}  a2 {[%clk 0:00:10]} 43. Ba1 {[%clk 0:00:02]}  Be7 {[%clk 0:00:08]} 44. Rh7+ {[%clk 0:00:03]}  Ke6 {[%clk 0:00:09]} 45. Rg7 {[%clk 0:00:03]}  g5 {[%clk 0:00:08]} 46. Rg6+ {[%clk 0:00:03]}  Kd5 {[%clk 0:00:08]} 47. f4 {[%clk 0:00:01]}  gxf4 {[%clk 0:00:07]} 48. g5 {[%clk 0:00:02]}  b4 {[%clk 0:00:07]} 49. Rg7 {[%clk 0:00:02]}  b3+ {[%clk 0:00:07]} 50. Kd1 {[%clk 0:00:02]}  Bc5 {[%clk 0:00:06]} 51. Rg8 {[%clk 0:00:01]} 1-0


[Site "https://www.chess.com"]

[Event "Titled Tuesday Blitz May 25 2021"]
[White "Arias, Juan Cruz"]
[Black "Gabrielian, Artur"]
[WhiteFideId "118540"]
[BlackFideId "4131002"]
[WhiteElo "2083"]
[BlackElo "2539"]
[Result "1-0"]
[Round "02"]
[TimeControl "180+1"]
[Date "2021.05.25"]
[WhiteClock "0:00:42"]
[BlackClock "0:00:08"]

1. e4 {[%clk 0:03:00]}  c5 {[%clk 0:02:57]} 2. Nc3 {[%clk 0:03:00]}  d6 {[%clk 0:02:57]} 3. g3 {[%clk 0:02:58]}  Nc6 {[%clk 0:02:57]} 4. Bg2 {[%clk 0:02:58]}  g6 {[%clk 0:02:58]} 5. d3 {[%clk 0:02:59]}  Bg7 {[%clk 0:02:58]} 6. f4 {[%clk 0:02:56]}  Nf6 {[%clk 0:02:58]} 7. Nf3 {[%clk 0:02:57]}  O-O {[%clk 0:02:58]} 8. O-O {[%clk 0:02:57]}  Rb8 {[%clk 0:02:59]} 9. Bd2 {[%clk 0:02:49]}  b5 {[%clk 0:02:58]} 10. a3 {[%clk 0:02:49]}  a5 {[%clk 0:02:58]} 11. a4 {[%clk 0:02:49]}  b4 {[%clk 0:02:57]} 12. Nb5 {[%clk 0:02:49]}  Ne8 {[%clk 0:02:56]} 13. Rb1 {[%clk 0:02:45]}  Nc7 {[%clk 0:02:56]} 14. c4 {[%clk 0:02:44]}  Bg4 {[%clk 0:02:36]} 15. h3 {[%clk 0:02:40]}  Bxf3 {[%clk 0:02:36]} 16. Qxf3 {[%clk 0:02:41]}  Ne6 {[%clk 0:02:36]} 17. Kh1 {[%clk 0:02:37]}  Ned4 {[%clk 0:02:33]} 18. Qd1 {[%clk 0:02:37]}  e6 {[%clk 0:02:29]} 19. Be3 {[%clk 0:02:35]}  Kh8 {[%clk 0:02:20]} 20. h4 {[%clk 0:02:28]}  f5 {[%clk 0:02:19]} 21. Bf2 {[%clk 0:02:06]}  h5 {[%clk 0:02:16]} 22. Re1 {[%clk 0:02:04]}  Kh7 {[%clk 0:02:15]} 23. Bf3 {[%clk 0:01:49]}  b3 {[%clk 0:02:08]} 24. Kg2 {[%clk 0:01:44]}  Nxf3 {[%clk 0:02:03]} 25. Qxf3 {[%clk 0:01:44]}  Nd4 {[%clk 0:02:03]} 26. Bxd4 {[%clk 0:01:44]}  cxd4 {[%clk 0:02:03]} 27. exf5 {[%clk 0:01:37]}  exf5 {[%clk 0:02:00]} 28. Re6 {[%clk 0:01:36]}  Rf6 {[%clk 0:02:00]} 29. Rbe1 {[%clk 0:01:36]}  Qf8 {[%clk 0:01:42]} 30. Qd5 {[%clk 0:01:34]}  Rxe6 {[%clk 0:01:40]} 31. Rxe6 {[%clk 0:01:32]}  Re8 {[%clk 0:01:38]} 32. Nxd6 {[%clk 0:01:27]}  Rxe6 {[%clk 0:01:36]} 33. Qxe6 {[%clk 0:01:28]}  Qb8 {[%clk 0:01:21]} 34. Qd7 {[%clk 0:01:01]}  Qa8+ {[%clk 0:01:09]} 35. Qb7 {[%clk 0:00:54]}  Qd8 {[%clk 0:01:03]} 36. Nf7 {[%clk 0:00:54]}  Qe8 {[%clk 0:00:59]} 37. Ne5 {[%clk 0:00:46]}  Kh6 {[%clk 0:00:47]} 38. Qc6 {[%clk 0:00:44]}  Qxc6+ {[%clk 0:00:22]} 39. Nxc6 {[%clk 0:00:45]}  Bf8 {[%clk 0:00:15]} 40. Nxa5 {[%clk 0:00:44]}  Ba3 {[%clk 0:00:08]} 41. Nxb3 {[%clk 0:00:43]}  Bxb2 {[%clk 0:00:08]} 42. a5 {[%clk 0:00:42]} 1-0


[Site "https://www.chess.com"]

[Event "Titled Tuesday Blitz May 25 2021"]
[White "Barbero Sendic, Alejandro"]
[Black "Laxman, R.R."]
[WhiteFideId "3001288"]
[BlackFideId "5005361"]
[WhiteElo "2314"]
[BlackElo "2476"]
[Result "0-1"]
[Round "02"]
[TimeControl "180+1"]
[Date "2021.05.25"]
[WhiteClock "0:00:07"]
[BlackClock "0:01:12"]

1. d4 {[%clk 0:03:00]}  Nf6 {[%clk 0:02:59]} 2. Nc3 {[%clk 0:03:00]}  e6 {[%clk 0:03:00]} 3. Bf4 {[%clk 0:02:55]}  Bb4 {[%clk 0:02:59]} 4. e3 {[%clk 0:02:56]}  Nd5 {[%clk 0:02:59]} 5. Ne2 {[%clk 0:02:56]}  Nxf4 {[%clk 0:02:58]} 6. exf4 {[%clk 0:02:57]}  O-O {[%clk 0:02:58]} 7. g3 {[%clk 0:02:57]}  d5 {[%clk 0:02:57]} 8. Bg2 {[%clk 0:02:57]}  c5 {[%clk 0:02:57]} 9. O-O {[%clk 0:02:57]}  Nc6 {[%clk 0:02:57]} 10. dxc5 {[%clk 0:02:53]}  Bxc5 {[%clk 0:02:57]} 11. f5 {[%clk 0:02:54]}  d4 {[%clk 0:02:50]} 12. Ne4 {[%clk 0:02:53]}  Be7 {[%clk 0:02:48]} 13. fxe6 {[%clk 0:02:51]}  Bxe6 {[%clk 0:02:48]} 14. c3 {[%clk 0:02:36]}  Bc4 {[%clk 0:02:44]} 15. cxd4 {[%clk 0:02:27]}  Bxe2 {[%clk 0:02:44]} 16. Qxe2 {[%clk 0:02:28]}  Qxd4 {[%clk 0:02:44]} 17. Rfd1 {[%clk 0:02:25]}  Qb6 {[%clk 0:02:44]} 18. Nc3 {[%clk 0:02:21]}  Bf6 {[%clk 0:02:42]} 19. Rac1 {[%clk 0:02:14]}  Rfe8 {[%clk 0:02:41]} 20. Qg4 {[%clk 0:01:38]}  Bxc3 {[%clk 0:02:39]} 21. bxc3 {[%clk 0:01:36]}  Ne5 {[%clk 0:02:38]} 22. Qe4 {[%clk 0:01:35]}  Qb2 {[%clk 0:02:27]} 23. Qxb7 {[%clk 0:01:29]}  Qxa2 {[%clk 0:02:27]} 24. Bd5 {[%clk 0:01:27]}  Qe2 {[%clk 0:02:26]} 25. f4 {[%clk 0:01:24]}  Rab8 {[%clk 0:02:20]} 26. Qxa7 {[%clk 0:01:07]}  Rb2 {[%clk 0:02:19]} 27. fxe5 {[%clk 0:00:51]}  Qxh2+ {[%clk 0:02:19]} 28. Kf1 {[%clk 0:00:51]}  Kh8 {[%clk 0:02:02]} 29. Qxf7 {[%clk 0:00:23]}  Qh3+ {[%clk 0:01:57]} 30. Kg1 {[%clk 0:00:18]}  Qxg3+ {[%clk 0:01:58]} 31. Kf1 {[%clk 0:00:17]}  Qh3+ {[%clk 0:01:51]} 32. Kg1 {[%clk 0:00:17]}  Qe3+ {[%clk 0:01:51]} 33. Kf1 {[%clk 0:00:17]}  Qe2+ {[%clk 0:01:36]} 34. Kg1 {[%clk 0:00:17]}  Qh2+ {[%clk 0:01:37]} 35. Kf1 {[%clk 0:00:17]}  Rd8 {[%clk 0:01:26]} 36. Qf3 {[%clk 0:00:10]}  h6 {[%clk 0:01:20]} 37. e6 {[%clk 0:00:10]}  Qe5 {[%clk 0:01:13]} 38. Qe4 {[%clk 0:00:07]}  Rf8+ {[%clk 0:01:12]} 0-1


[Site "https://www.chess.com"]

[Event "Titled Tuesday Blitz May 25 2021"]
[White "Barria Zuniga, Daniel"]
[Black "Abdusattorov, Nodirbek"]
[WhiteFideId "3400816"]
[BlackFideId "14204118"]
[WhiteElo "2414"]
[BlackElo "2662"]
[Result "0-1"]
[Round "02"]
[TimeControl "180+1"]
[Date "2021.05.25"]
[WhiteClock "0:00:02"]
[BlackClock "0:00:41"]

1. Nc3 {[%clk 0:02:49]}  c5 {[%clk 0:02:59]} 2. d4 {[%clk 0:02:49]}  cxd4 {[%clk 0:02:58]} 3. Qxd4 {[%clk 0:02:50]}  Nc6 {[%clk 0:02:58]} 4. Qh4 {[%clk 0:02:46]}  g6 {[%clk 0:02:57]} 5. Nf3 {[%clk 0:02:46]}  Bg7 {[%clk 0:02:57]} 6. Bd2 {[%clk 0:02:43]}  Nf6 {[%clk 0:02:53]} 7. O-O-O {[%clk 0:02:43]}  h6 {[%clk 0:02:49]} 8. h3 {[%clk 0:02:35]}  d6 {[%clk 0:02:47]} 9. e4 {[%clk 0:02:34]}  Be6 {[%clk 0:02:44]} 10. Bb5 {[%clk 0:02:28]}  Qa5 {[%clk 0:02:42]} 11. Nd4 {[%clk 0:02:24]}  Bd7 {[%clk 0:02:37]} 12. Nb3 {[%clk 0:02:24]}  Qb6 {[%clk 0:02:37]} 13. Be3 {[%clk 0:02:23]}  Qc7 {[%clk 0:02:36]} 14. Nd5 {[%clk 0:02:02]}  Nxd5 {[%clk 0:02:35]} 15. exd5 {[%clk 0:02:03]}  Ne5 {[%clk 0:02:35]} 16. Bxd7+ {[%clk 0:02:03]}  Qxd7 {[%clk 0:02:31]} 17. Bd4 {[%clk 0:02:03]}  Rc8 {[%clk 0:02:29]} 18. f4 {[%clk 0:01:51]}  g5 {[%clk 0:02:08]} 19. Qf2 {[%clk 0:01:08]}  gxf4 {[%clk 0:02:05]} 20. Qxf4 {[%clk 0:01:09]}  a5 {[%clk 0:01:58]} 21. Bc3 {[%clk 0:00:52]}  Rxc3 {[%clk 0:01:55]} 22. bxc3 {[%clk 0:00:50]}  O-O {[%clk 0:01:56]} 23. Rhe1 {[%clk 0:00:45]}  Rc8 {[%clk 0:01:56]} 24. Re3 {[%clk 0:00:41]}  Qb5 {[%clk 0:01:30]} 25. Rde1 {[%clk 0:00:30]}  Qxd5 {[%clk 0:01:28]} 26. Nd4 {[%clk 0:00:23]}  Qxa2 {[%clk 0:01:24]} 27. Nf5 {[%clk 0:00:22]}  Nc4 {[%clk 0:01:21]} 28. Kd1 {[%clk 0:00:19]}  Nxe3+ {[%clk 0:01:07]} 29. Rxe3 {[%clk 0:00:18]}  Rxc3 {[%clk 0:00:49]} 30. Nxh6+ {[%clk 0:00:15]}  Bxh6 {[%clk 0:00:42]} 31. Qg4+ {[%clk 0:00:11]}  Bg7 {[%clk 0:00:41]} 32. Rxc3 {[%clk 0:00:02]}  Qa1+ {[%clk 0:00:41]} 0-1


[Site "https://www.chess.com"]

[Event "Titled Tuesday Blitz May 25 2021"]
[White "Bodnaruk, Anastasia"]
[Black "Zubov, Alexander"]
[WhiteFideId "4181751"]
[BlackFideId "14109409"]
[WhiteElo "2393"]
[BlackElo "2740"]
[Result "0-1"]
[Round "02"]
[TimeControl "180+1"]
[Date "2021.05.25"]
[WhiteClock "0:00:11"]
[BlackClock "0:00:23"]

1. e4 {[%clk 0:03:00]}  c5 {[%clk 0:02:56]} 2. Nc3 {[%clk 0:03:00]}  e6 {[%clk 0:02:56]} 3. Nf3 {[%clk 0:02:57]}  a6 {[%clk 0:02:55]} 4. d4 {[%clk 0:02:57]}  cxd4 {[%clk 0:02:55]} 5. Nxd4 {[%clk 0:02:57]}  b5 {[%clk 0:02:55]} 6. Bd3 {[%clk 0:02:50]}  Qb6 {[%clk 0:02:54]} 7. Nb3 {[%clk 0:02:47]}  Qc7 {[%clk 0:02:53]} 8. O-O {[%clk 0:02:46]}  Bb7 {[%clk 0:02:53]} 9. Bg5 {[%clk 0:02:37]}  Nc6 {[%clk 0:02:46]} 10. Re1 {[%clk 0:02:33]}  Be7 {[%clk 0:02:30]} 11. Qd2 {[%clk 0:02:18]}  Nf6 {[%clk 0:02:26]} 12. Bf4 {[%clk 0:01:53]}  Ne5 {[%clk 0:02:11]} 13. Nd4 {[%clk 0:01:33]}  O-O {[%clk 0:02:05]} 14. h3 {[%clk 0:01:23]}  Rac8 {[%clk 0:01:57]} 15. a4 {[%clk 0:01:18]}  b4 {[%clk 0:01:56]} 16. Na2 {[%clk 0:01:17]}  Bd6 {[%clk 0:01:06]} 17. Bg5 {[%clk 0:01:13]}  Qb6 {[%clk 0:01:03]} 18. Bxf6 {[%clk 0:01:05]}  gxf6 {[%clk 0:01:03]} 19. Nb3 {[%clk 0:00:59]}  Kh8 {[%clk 0:00:59]} 20. a5 {[%clk 0:00:55]}  Qc7 {[%clk 0:00:56]} 21. Nxb4 {[%clk 0:00:51]}  Rg8 {[%clk 0:00:56]} 22. Kh1 {[%clk 0:00:47]}  Ra8 {[%clk 0:00:32]} 23. Nd4 {[%clk 0:00:39]}  Rg6 {[%clk 0:00:31]} 24. f4 {[%clk 0:00:30]}  Nxd3 {[%clk 0:00:30]} 25. Nxd3 {[%clk 0:00:30]}  Rag8 {[%clk 0:00:30]} 26. Re2 {[%clk 0:00:27]}  f5 {[%clk 0:00:30]} 27. e5 {[%clk 0:00:21]}  Rxg2 {[%clk 0:00:28]} 28. Rxg2 {[%clk 0:00:20]}  Rxg2 {[%clk 0:00:29]} 29. Qxg2 {[%clk 0:00:20]}  Bxg2+ {[%clk 0:00:29]} 30. Kh2 {[%clk 0:00:20]}  Bc5 {[%clk 0:00:28]} 31. Nb3 {[%clk 0:00:17]}  Ba7 {[%clk 0:00:25]} 32. Rc1 {[%clk 0:00:11]}  Be4 {[%clk 0:00:23]} 0-1


[Site "https://www.chess.com"]

[Event "Titled Tuesday Blitz May 25 2021"]
[White "Bok, Benjamin"]
[Black "Kjartansson, David"]
[WhiteFideId "1017063"]
[BlackFideId "2301130"]
[WhiteElo "2674"]
[BlackElo "2292"]
[Result "1-0"]
[Round "02"]
[TimeControl "180+1"]
[Date "2021.05.25"]
[WhiteClock "0:00:47"]
[BlackClock "0:00:58"]

1. d4 {[%clk 0:03:00]}  Nf6 {[%clk 0:02:59]} 2. c4 {[%clk 0:02:58]}  e6 {[%clk 0:03:00]} 3. Nc3 {[%clk 0:02:58]}  d5 {[%clk 0:02:59]} 4. cxd5 {[%clk 0:02:57]}  exd5 {[%clk 0:02:58]} 5. Bg5 {[%clk 0:02:57]}  Nbd7 {[%clk 0:02:58]} 6. e3 {[%clk 0:02:57]}  c6 {[%clk 0:02:56]} 7. Bd3 {[%clk 0:02:56]}  Be7 {[%clk 0:02:56]} 8. Nf3 {[%clk 0:02:55]}  Nh5 {[%clk 0:02:56]} 9. Bxe7 {[%clk 0:02:53]}  Qxe7 {[%clk 0:02:57]} 10. O-O {[%clk 0:02:51]}  O-O {[%clk 0:02:57]} 11. Qc2 {[%clk 0:02:49]}  g6 {[%clk 0:02:56]} 12. Rab1 {[%clk 0:02:47]}  a5 {[%clk 0:02:55]} 13. a3 {[%clk 0:02:48]}  f5 {[%clk 0:02:53]} 14. b4 {[%clk 0:02:44]}  axb4 {[%clk 0:02:53]} 15. axb4 {[%clk 0:02:45]}  b5 {[%clk 0:02:46]} 16. Ne2 {[%clk 0:02:28]}  Bb7 {[%clk 0:02:42]} 17. Qc3 {[%clk 0:02:13]}  Nhf6 {[%clk 0:02:23]} 18. Ne5 {[%clk 0:02:11]}  Rfc8 {[%clk 0:02:11]} 19. Ra1 {[%clk 0:02:09]}  Nb6 {[%clk 0:02:07]} 20. Rxa8 {[%clk 0:01:59]}  Bxa8 {[%clk 0:02:06]} 21. Ra1 {[%clk 0:01:55]}  Ne4 {[%clk 0:01:57]} 22. Bxe4 {[%clk 0:01:49]}  fxe4 {[%clk 0:01:56]} 23. Qc5 {[%clk 0:01:42]}  Qxc5 {[%clk 0:01:50]} 24. dxc5 {[%clk 0:01:42]}  Na4 {[%clk 0:01:44]} 25. Nd4 {[%clk 0:01:38]}  Bb7 {[%clk 0:01:41]} 26. f3 {[%clk 0:01:35]}  exf3 {[%clk 0:01:37]} 27. gxf3 {[%clk 0:01:36]}  Rc7 {[%clk 0:01:32]} 28. Kf2 {[%clk 0:01:36]}  Rc8 {[%clk 0:01:19]} 29. h4 {[%clk 0:01:35]}  Kg7 {[%clk 0:01:17]} 30. f4 {[%clk 0:01:21]}  Kf6 {[%clk 0:01:16]} 31. h5 {[%clk 0:01:17]}  gxh5 {[%clk 0:01:10]} 32. Rh1 {[%clk 0:01:16]}  Nc3 {[%clk 0:01:08]} 33. Rxh5 {[%clk 0:01:16]}  Ne4+ {[%clk 0:01:08]} 34. Kf3 {[%clk 0:01:15]}  Rg8 {[%clk 0:01:06]} 35. Rh6+ {[%clk 0:00:59]}  Kg7 {[%clk 0:01:04]} 36. Nf5+ {[%clk 0:00:49]}  Kf8 {[%clk 0:01:02]} 37. Rxh7 {[%clk 0:00:50]}  Bc8 {[%clk 0:01:00]} 38. Rf7+ {[%clk 0:00:47]}  Ke8 {[%clk 0:01:01]} 39. Ng7+ {[%clk 0:00:47]}  Kd8 {[%clk 0:00:58]} 40. Nxc6# {[%clk 0:00:47]} 1-0


[Site "https://www.chess.com"]

[Event "Titled Tuesday Blitz May 25 2021"]
[White "Bortnyk, Olexandr"]
[Black "Matveev, Vladimir"]
[WhiteFideId "14120828"]
[BlackFideId "24130753"]
[WhiteElo "2723"]
[BlackElo "2383"]
[Result "1-0"]
[Round "02"]
[TimeControl "180+1"]
[Date "2021.05.25"]
[WhiteClock "0:01:21"]
[BlackClock "0:00:10"]

1. d4 {[%clk 0:03:00]}  Nf6 {[%clk 0:02:59]} 2. Bf4 {[%clk 0:03:00]}  g6 {[%clk 0:02:58]} 3. e3 {[%clk 0:02:58]}  Bg7 {[%clk 0:02:58]} 4. h4 {[%clk 0:02:58]}  d6 {[%clk 0:02:52]} 5. h5 {[%clk 0:02:53]}  Nxh5 {[%clk 0:02:50]} 6. Rxh5 {[%clk 0:02:52]}  gxh5 {[%clk 0:02:50]} 7. Qxh5 {[%clk 0:02:52]}  e6 {[%clk 0:02:50]} 8. Nf3 {[%clk 0:02:51]}  h6 {[%clk 0:02:27]} 9. Nc3 {[%clk 0:02:51]}  Nd7 {[%clk 0:02:15]} 10. O-O-O {[%clk 0:02:41]}  Nf6 {[%clk 0:02:14]} 11. Qh2 {[%clk 0:02:41]}  Bd7 {[%clk 0:02:07]} 12. e4 {[%clk 0:02:36]}  Qe7 {[%clk 0:01:19]} 13. e5 {[%clk 0:02:34]}  dxe5 {[%clk 0:01:15]} 14. Nxe5 {[%clk 0:02:33]}  O-O-O {[%clk 0:01:04]} 15. Bc4 {[%clk 0:02:24]}  Be8 {[%clk 0:00:41]} 16. Rd3 {[%clk 0:02:03]}  Nd5 {[%clk 0:00:21]} 17. Nxd5 {[%clk 0:01:35]}  exd5 {[%clk 0:00:22]} 18. Bb3 {[%clk 0:01:35]}  f6 {[%clk 0:00:18]} 19. Nf3 {[%clk 0:01:33]}  Bg6 {[%clk 0:00:18]} 20. Re3 {[%clk 0:01:22]}  Qd7 {[%clk 0:00:18]} 21. Bxc7 {[%clk 0:01:21]}  Qxc7 {[%clk 0:00:15]} 22. Rc3 {[%clk 0:01:22]}  Qxc3 {[%clk 0:00:14]} 23. bxc3 {[%clk 0:01:22]}  Be4 {[%clk 0:00:13]} 24. Nd2 {[%clk 0:01:20]}  Rd7 {[%clk 0:00:10]} 25. Nxe4 {[%clk 0:01:20]}  dxe4 {[%clk 0:00:10]} 26. Be6 {[%clk 0:01:21]} 1-0


[Site "https://www.chess.com"]

[Event "Titled Tuesday Blitz May 25 2021"]
[White "Budiarti, Farah Yumna"]
[Black "Mirzoev, Azer"]
[WhiteFideId "7107331"]
[BlackFideId "13400304"]
[WhiteElo "2503"]
[BlackElo "2525"]
[Result "1/2-1/2"]
[Round "02"]
[TimeControl "180+1"]
[Date "2021.05.25"]
[WhiteClock "0:00:11"]
[BlackClock "0:00:11"]

1. d4 {[%clk 0:02:56]}  d5 {[%clk 0:02:59]} 2. c4 {[%clk 0:02:55]}  c6 {[%clk 0:02:59]} 3. g3 {[%clk 0:02:54]}  Nf6 {[%clk 0:02:59]} 4. Bg2 {[%clk 0:02:54]}  Bf5 {[%clk 0:02:58]} 5. cxd5 {[%clk 0:02:54]}  cxd5 {[%clk 0:02:58]} 6. Nc3 {[%clk 0:02:54]}  e6 {[%clk 0:02:58]} 7. Qb3 {[%clk 0:02:54]}  Qb6 {[%clk 0:02:51]} 8. Nf3 {[%clk 0:02:41]}  Nc6 {[%clk 0:02:50]} 9. O-O {[%clk 0:02:39]}  Be7 {[%clk 0:02:41]} 10. Qxb6 {[%clk 0:02:25]}  axb6 {[%clk 0:02:41]} 11. Bf4 {[%clk 0:02:26]}  O-O {[%clk 0:02:21]} 12. Rfd1 {[%clk 0:02:14]}  h6 {[%clk 0:02:19]} 13. Ne5 {[%clk 0:01:53]}  Rfc8 {[%clk 0:02:16]} 14. h3 {[%clk 0:01:46]}  g5 {[%clk 0:02:12]} 15. Be3 {[%clk 0:01:27]}  Bc2 {[%clk 0:02:01]} 16. Rd2 {[%clk 0:01:24]}  Bh7 {[%clk 0:01:59]} 17. f4 {[%clk 0:01:23]}  gxf4 {[%clk 0:01:54]} 18. Bxf4 {[%clk 0:01:18]}  Nxe5 {[%clk 0:01:50]} 19. Bxe5 {[%clk 0:01:05]}  Bg6 {[%clk 0:01:32]} 20. Rf1 {[%clk 0:01:04]}  Nd7 {[%clk 0:01:17]} 21. Bf4 {[%clk 0:01:03]}  h5 {[%clk 0:01:08]} 22. e4 {[%clk 0:00:33]}  dxe4 {[%clk 0:01:07]} 23. Bxe4 {[%clk 0:00:32]}  Bxe4 {[%clk 0:01:04]} 24. Nxe4 {[%clk 0:00:33]}  Rxa2 {[%clk 0:01:04]} 25. Bd6 {[%clk 0:00:31]}  Re8 {[%clk 0:00:40]} 26. g4 {[%clk 0:00:28]}  hxg4 {[%clk 0:00:39]} 27. hxg4 {[%clk 0:00:29]}  Ra5 {[%clk 0:00:34]} 28. Rc2 {[%clk 0:00:23]}  Rd5 {[%clk 0:00:31]} 29. Bxe7 {[%clk 0:00:11]}  Rxe7 {[%clk 0:00:30]} 30. Rc8+ {[%clk 0:00:11]}  Kg7 {[%clk 0:00:30]} 31. g5 {[%clk 0:00:08]}  Rf5 {[%clk 0:00:19]} 32. Rxf5 {[%clk 0:00:02]}  exf5 {[%clk 0:00:18]} 33. Nd6 {[%clk 0:00:03]}  Re1+ {[%clk 0:00:14]} 34. Kf2 {[%clk 0:00:03]}  Nf8 {[%clk 0:00:12]} 35. Rc7 {[%clk 0:00:03]}  Re6 {[%clk 0:00:11]} 36. Nxf7 {[%clk 0:00:03]}  Kg6 {[%clk 0:00:10]} 37. Ne5+ {[%clk 0:00:03]}  Kxg5 {[%clk 0:00:10]} 38. Rxb7 {[%clk 0:00:04]}  Ng6 {[%clk 0:00:10]} 39. Rg7 {[%clk 0:00:04]}  Kh6 {[%clk 0:00:09]} 40. Rxg6+ {[%clk 0:00:04]}  Rxg6 {[%clk 0:00:09]} 41. Nxg6 {[%clk 0:00:05]}  Kxg6 {[%clk 0:00:10]} 42. Kf3 {[%clk 0:00:06]}  Kg5 {[%clk 0:00:10]} 43. b4 {[%clk 0:00:05]}  f4 {[%clk 0:00:09]} 44. d5 {[%clk 0:00:04]}  Kf5 {[%clk 0:00:09]} 45. d6 {[%clk 0:00:05]}  Ke6 {[%clk 0:00:09]} 46. Kxf4 {[%clk 0:00:05]}  Kxd6 {[%clk 0:00:10]} 47. Ke4 {[%clk 0:00:06]}  Kc6 {[%clk 0:00:10]} 48. Kd4 {[%clk 0:00:05]}  b5 {[%clk 0:00:10]} 49. Ke5 {[%clk 0:00:05]}  Kc7 {[%clk 0:00:09]} 50. Kd5 {[%clk 0:00:05]}  Kd7 {[%clk 0:00:09]} 51. Kc5 {[%clk 0:00:05]}  Kc7 {[%clk 0:00:10]} 52. Kxb5 {[%clk 0:00:06]}  Kb7 {[%clk 0:00:10]} 53. Kc5 {[%clk 0:00:07]}  Kc7 {[%clk 0:00:11]} 54. b5 {[%clk 0:00:08]}  Kb7 {[%clk 0:00:11]} 55. b6 {[%clk 0:00:09]}  Kb8 {[%clk 0:00:10]} 56. Kc6 {[%clk 0:00:10]}  Kc8 {[%clk 0:00:11]} 57. b7+ {[%clk 0:00:10]}  Kb8 {[%clk 0:00:11]} 58. Kb6 {[%clk 0:00:11]} 1/2-1/2


[Site "https://www.chess.com"]